bitfinex-derivatives/quotes_BTCF0:USTF0_20241213
["timestamp","ask_amount","ask_price","bid_price","bid_amount"]
[1734092855552,0.32089407,100410.0,100400.0,0.59012656]
[1734092855751,0.32089407,100410.0,100400.0,1.01341241]
[1734092855752,0.25840822,100410.0,100400.0,1.01341241]
[1734092855953,0.25840822,100410.0,100400.0,1.08121241]
[1734092856345,0.25840822,100410.0,100400.0,1.08321241]
[1734092856757,0.25840822,100410.0,100400.0,0.72241241]
[1734092857858,0.25840822,100410.0,100400.0,0.72241416]
[1734092859652,0.25840822,100410.0,100400.0,1.08321416]
[1734092860349,0.25840822,100410.0,100400.0,0.72241416]
[1734092860851,0.25840822,100410.0,100400.0,0.72240957]
[1734092864062,0.16901207,100410.0,100400.0,0.49973085]
[1734092864262,0.16901207,100410.0,100400.0,0.49973166]
[1734092867466,0.16901207,100410.0,100400.0,0.86054107]
[1734092867672,0.16901207,100410.0,100400.0,0.49974107]
[1734092868163,0.16901207,100410.0,100400.0,0.6787503]
[1734092869160,0.90077399,100410.0,100400.0,0.19166653]
[1734092869367,0.90077399,100410.0,100400.0,0.006]
[1734092869368,0.75169667,100410.0,100400.0,0.006]
[1734092872859,0.76179204,100410.0,100400.0,0.006]
[1734092877369,0.91060993,100410.0,100400.0,0.006]
[1734092877570,0.91061712,100410.0,100400.0,0.006]
[1734092879975,0.91061712,100410.0,100400.0,0.055798]
[1734092881479,0.84813127,100410.0,100400.0,0.1807697]
[1734092881772,0.31775107,100410.0,100400.0,0.36638143]
[1734092881969,0.16892599,100410.0,100400.0,0.66660039]
[1734092882281,0.31775107,100410.0,100400.0,0.66660039]
[1734092882568,0.31775107,100410.0,100400.0,0.65999885]
[1734092882779,0.31775107,100410.0,100400.0,0.71020957]
[1734092882970,0.31775107,100410.0,100400.0,0.66662109]
[1734092883163,0.31775107,100410.0,100400.0,0.71020959]
[1734092883765,0.26795807,100410.0,100400.0,0.71020959]
[1734092884479,0.26795807,100410.0,100400.0,0.66662109]
[1734092885371,0.26795807,100410.0,100400.0,0.6666224]
[1734092885575,0.26795807,100410.0,100400.0,0.66662258]
[1734092885974,0.20849786,100410.0,100400.0,1.07101095]
[1734092886274,0.20849786,100410.0,100400.0,0.89200076]
[1734092887074,0.20849786,100410.0,100400.0,1.53453031]
[1734092887266,0.08936487,100410.0,100400.0,1.53453031]
[1734092887466,0.08936487,100410.0,100400.0,1.59701616]
[1734092887663,0.08936487,100410.0,100400.0,1.53453031]
[1734092887865,0.20849786,100420.0,100400.0,1.70387966]
[1734092888071,0.20849786,100420.0,100410.0,0.98382139]
[1734092888274,0.20849786,100420.0,100410.0,0.99044512]
[1734092888677,0.20849786,100420.0,100410.0,0.99044626]
[1734092888976,0.25828586,100420.0,100410.0,0.92796041]
[1734092890776,0.23140684,100420.0,100410.0,0.32861373]
[1734092890983,0.31774607,100420.0,100410.0,0.32861373]
[1734092891372,0.31774607,100420.0,100410.0,0.14307885]
[1734092891572,0.19861308,100420.0,100410.0,0.14307885]
[1734092891783,0.3177029,100420.0,100410.0,0.14307885]
[1734092893185,0.6785029,100420.0,100410.0,0.14307885]
[1734092895681,0.6785029,100420.0,100410.0,0.15331059]
[1734092895878,0.6785029,100420.0,100410.0,0.14307885]
[1734092896476,0.6785029,100420.0,100410.0,0.09328585]
[1734092896785,0.55941308,100420.0,100410.0,0.09328585]
[1734092899385,0.55941308,100420.0,100410.0,0.1034507]
[1734092901989,0.19861308,100420.0,100410.0,0.1034507]
[1734092902180,0.55941308,100420.0,100410.0,0.1034507]
[1734092902486,0.73843427,100420.0,100410.0,0.09328585]
[1734092903784,0.049793,100410.0,100400.0,0.53858723]
[1734092903988,0.25825384,100410.0,100400.0,0.71383094]
[1734092905091,0.25825384,100410.0,100400.0,0.71983094]
[1734092905391,0.59219933,100410.0,100400.0,0.48346424]
[1734092905582,0.72150056,100410.0,100400.0,0.24139224]
[1734092906175,0.72150056,100410.0,100400.0,0.30387809]
[1734092906176,0.65901471,100410.0,100400.0,0.30387809]
[1734092906389,0.65901471,100410.0,100400.0,0.29719386]
[1734092906693,0.8380359,100410.0,100400.0,0.30389388]
[1734092907992,0.8380359,100410.0,100400.0,0.30390846]
[1734092908695,0.8380359,100410.0,100400.0,0.36639431]
[1734092908696,0.73843927,100410.0,100400.0,0.36639431]
[1734092908882,0.73843927,100410.0,100400.0,0.39749431]
[1734092909084,0.73843927,100410.0,100400.0,0.33500846]
[1734092916296,0.55941808,100410.0,100400.0,0.33500846]
[1734092916792,0.19861808,100410.0,100400.0,0.57355514]
[1734092916997,0.31783407,100410.0,100400.0,0.62795444]
[1734092917187,0.31783639,100410.0,100400.0,0.62795444]
[1734092917592,0.31783626,100410.0,100400.0,0.58436478]
[1734092918100,0.31782992,100410.0,100400.0,0.58436478]
[1734092918290,0.3178436,100410.0,100400.0,0.58436478]
[1734092918489,0.19861808,100410.0,100400.0,0.58436478]
[1734092918690,0.73843927,100410.0,100400.0,0.33500846]
[1734092920803,0.80092512,100410.0,100400.0,0.31611303]
[1734092921000,0.80092512,100410.0,100400.0,0.24142261]
[1734092921296,0.75169667,100410.0,100400.0,0.19162461]
[1734092921693,0.75169667,100410.0,100400.0,0.0127146]
[1734092922094,0.75169667,100410.0,100400.0,0.006]
[1734092930599,0.57267548,100410.0,100400.0,0.006]
[1734092933407,0.75150973,100410.0,100400.0,0.006]
[1734092934201,0.75150973,100410.0,100400.0,0.055798]
[1734092935502,0.68902388,100410.0,100400.0,0.11828385]
[1734092935702,0.58942725,100410.0,100400.0,0.30398003]
[1734092936008,0.6519131,100410.0,100400.0,0.30398003]
[1734092938207,0.6519131,100410.0,100400.0,0.24149418]
[1734092939302,0.6519131,100410.0,100400.0,0.30398003]
[1734092939704,0.6519131,100410.0,100400.0,0.31390784]
[1734092940201,0.6519131,100410.0,100400.0,0.12507002]
[1734092940402,0.6519131,100410.0,100400.0,0.01278617]
[1734092940600,0.75150973,100410.0,100400.0,0.19169618]
[1734092940799,0.81399558,100410.0,100390.0,0.41745669]
[1734092941006,0.86343106,100400.0,100390.0,0.18567111]
[1734092941206,0.80790395,100400.0,100390.0,0.17891001]
[1734092941612,1.05652672,100400.0,100390.0,0.17891001]
[1734092941808,0.9075105,100400.0,100390.0,0.17891001]
[1734092942010,0.9075105,100400.0,100380.0,0.32420781]
[1734092942011,0.049803,100390.0,100380.0,0.32420781]
[1734092942219,0.80090113,100390.0,100380.0,0.33096438]
[1734092942718,0.80090113,100390.0,100380.0,0.15205437]
[1734092943017,0.80090113,100390.0,100380.0,0.33096438]
[1734092943314,0.80090113,100390.0,100380.0,0.1452978]
[1734092943509,0.80190113,100390.0,100380.0,0.1482978]
[1734092943910,0.80190113,100390.0,100380.0,0.33396023]
[1734092943911,0.62309443,100390.0,100380.0,0.33396023]
[1734092944104,0.62409443,100390.0,100380.0,0.33896023]
[1734092944817,0.62409443,100390.0,100380.0,0.40144608]
[1734092945023,0.80290113,100390.0,100380.0,0.40144608]
[1734092945516,0.62409443,100390.0,100380.0,0.40144608]
[1734092948316,0.62409443,100390.0,100380.0,0.33896023]
[1734092949723,0.62409443,100390.0,100380.0,0.40144608]
[1734092951115,0.56160858,100390.0,100380.0,0.40144608]
[1734092951724,0.56160858,100390.0,100380.0,0.40143916]
[1734092951914,0.20080858,100390.0,100380.0,0.40143916]
[1734092952117,0.56160858,100390.0,100380.0,0.40143916]
[1734092958229,0.56160858,100390.0,100380.0,0.40144051]
[1734092958422,0.62409443,100390.0,100380.0,0.40144051]
[1734092959630,0.62409443,100390.0,100380.0,0.39994671]
[1734092959829,0.62409443,100390.0,100380.0,0.39996691]
[1734092961522,0.62409443,100390.0,100380.0,0.39998761]
[1734092961722,0.62409443,100390.0,100380.0,0.39319986]
[1734092961935,0.62409443,100390.0,100380.0,0.39996502]
[1734092962532,0.80290113,100390.0,100380.0,0.33747917]
[1734092963031,0.62409443,100390.0,100380.0,0.33747917]
[1734092963723,0.80290113,100390.0,100380.0,0.33747917]
[1734092966534,0.80290113,100390.0,100380.0,0.33071401]
[1734092966830,0.80290113,100390.0,100380.0,0.33743888]
[1734092967222,0.80290113,100390.0,100380.0,0.38103946]
[1734092967831,0.9025176,100390.0,100380.0,0.52558614]
[1734092968130,0.75351202,100390.0,100380.0,0.24343888]
[1734092969235,0.57470532,100390.0,100380.0,0.28704078]
[1734092969427,0.57470532,100390.0,100380.0,0.24343888]
[1734092969628,0.75370394,100390.0,100380.0,0.24343888]
[1734092970739,0.75370394,100390.0,100380.0,0.19363488]
[1734092970939,0.57470532,100390.0,100380.0,0.19363488]
[1734092974335,0.57470532,100390.0,100380.0,0.18691001]
[1734092976533,0.51221947,100390.0,100380.0,0.18691001]
[1734092976829,0.57470532,100390.0,100380.0,0.18691001]
[1734092977442,0.57470532,100390.0,100380.0,0.008]
[1734092977644,0.57470532,100390.0,100380.0,0.18691001]
[1734092978029,0.75370068,100390.0,100380.0,0.19357318]
[1734092980039,0.75370068,100390.0,100380.0,0.19356235]
[1734092981046,0.75370068,100390.0,100380.0,0.18691001]
[1734092981942,0.75370068,100390.0,100380.0,0.19355249]
[1734092982144,0.75370068,100390.0,100380.0,0.18691001]
[1734092982649,0.81618653,100390.0,100380.0,0.18691001]
[1734092982845,0.57470532,100390.0,100380.0,0.008]
[1734092984951,0.57370532,100390.0,100380.0,0.005]
[1734092985653,0.57270532,100390.0,100370.0,0.46726869]
[1734092985843,0.8011925,100380.0,100370.0,0.47388897]
[1734092986043,0.8011925,100380.0,100370.0,0.5174933]
[1734092986544,0.90080897,100380.0,100370.0,0.5174933]
[1734092986850,0.75167322,100380.0,100370.0,0.27894662]
[1734092987547,0.75167322,100380.0,100370.0,0.28194593]
[1734092987948,0.75167322,100380.0,100370.0,0.1885296]
[1734092988254,0.81415907,100380.0,100370.0,0.1885296]
[1734092988450,0.81415907,100380.0,100370.0,0.18191001]
[1734092988862,0.81415907,100380.0,100370.0,0.003]
[1734092989152,0.81415907,100380.0,100370.0,0.18291001]
[1734092989343,0.81415907,100380.0,100370.0,0.04760584]
[1734092989543,0.81415907,100380.0,100370.0,0.004]
[1734092992747,0.8243857,100380.0,100370.0,0.004]
[1734092994746,0.8243857,100380.0,100370.0,0.18948851]
[1734092994947,0.8243857,100380.0,100370.0,0.18291001]
[1734092995356,0.8243857,100380.0,100370.0,0.18948857]
[1734092997351,0.8243857,100380.0,100370.0,0.18948109]
[1734093000552,0.8243857,100380.0,100370.0,0.18947756]
[1734093000753,0.8243857,100380.0,100370.0,0.18291001]
[1734093001050,0.8243857,100380.0,100370.0,0.004]
[1734093003659,0.76189985,100380.0,100370.0,0.053813]
[1734093003958,0.73870794,100380.0,100370.0,0.3017884]
[1734093004153,0.55974504,100380.0,100370.0,0.54033508]
[1734093004356,0.62925795,100380.0,100370.0,1.05164845]
[1734093004753,0.11932091,100380.0,100370.0,1.05164845]
[1734093004949,0.26845795,100380.0,100370.0,1.05164845]
[1734093005254,0.16912891,100380.0,100370.0,1.05164845]
[1734093005969,0.16912891,100380.0,100370.0,1.04506891]
[1734093006258,0.16912891,100380.0,100370.0,1.05166354]
[1734093006259,0.31826595,100380.0,100370.0,1.05166354]
[1734093007069,0.26845795,100380.0,100370.0,1.05166354]
[1734093008267,0.26845795,100380.0,100370.0,0.70331705]
[1734093009356,0.11932091,100380.0,100370.0,0.70331705]
[1734093009968,0.16912891,100380.0,100370.0,0.70331705]
[1734093010282,0.16912891,100380.0,100370.0,0.40504335]
[1734093011471,0.16912891,100380.0,100370.0,0.58411447]
[1734093012653,0.23161476,100380.0,100370.0,0.58411447]
[1734093013256,0.16912891,100380.0,100370.0,0.58411447]
[1734093015767,0.16912891,100380.0,100370.0,0.54047542]
[1734093015960,0.16912891,100380.0,100370.0,0.58407652]
[1734093017970,0.16912891,100380.0,100370.0,0.54047542]
[1734093020067,0.16912891,100380.0,100370.0,0.36144016]
[1734093020272,0.16912891,100380.0,100370.0,0.58406961]
[1734093020464,0.16912891,100380.0,100370.0,0.54046849]
[1734093020668,0.16912891,100380.0,100370.0,0.53387386]
[1734093022469,0.16912891,100380.0,100370.0,0.54043992]
[1734093022668,0.16912891,100380.0,100370.0,0.3614208]
[1734093023172,0.16912891,100380.0,100370.0,0.40502164]
[1734093024080,0.11932091,100380.0,100370.0,0.40502164]
[1734093025768,0.11932091,100380.0,100370.0,0.58409766]
[1734093025964,0.47309185,100390.0,100380.0,0.049808]
[1734093026183,0.47309185,100390.0,100380.0,0.11229385]
[1734093026671,0.50329185,100390.0,100380.0,0.11229385]
[1734093027869,0.68237506,100390.0,100380.0,0.29140354]
[1734093028065,0.68237506,100390.0,100380.0,0.22891769]
[1734093030972,0.50329185,100390.0,100380.0,0.049808]
[1734093031487,0.50329185,100390.0,100380.0,0.05635706]
[1734093031980,0.50329185,100390.0,100380.0,0.049808]
[1734093032485,0.50329185,100390.0,100380.0,0.11229385]
[1734093033183,0.50329185,100390.0,100380.0,0.049808]
[1734093033381,0.50329185,100390.0,100380.0,0.11229385]
[1734093034082,0.50329185,100390.0,100380.0,0.049808]
[1734093034288,0.50329185,100390.0,100380.0,0.11229385]
[1734093034581,0.50329185,100390.0,100380.0,0.049808]
[1734093035982,0.68251253,100390.0,100380.0,0.46828557]
[1734093036388,0.50329185,100390.0,100380.0,0.049808]
[1734093037071,0.68251231,100390.0,100380.0,0.28893785]
[1734093037276,0.68251231,100390.0,100380.0,0.46828523]
[1734093037579,0.50329185,100390.0,100380.0,0.049808]
[1734093038385,0.68251487,100390.0,100380.0,0.46829117]
[1734093038875,0.50329185,100390.0,100380.0,0.049808]
[1734093039484,0.50329185,100390.0,100370.0,0.11229885]
[1734093039485,0.049808,100380.0,100370.0,0.11229485]
[1734093039784,0.37837918,100380.0,100370.0,0.75969165]
[1734093039977,0.049808,100380.0,100370.0,0.11229485]
[1734093040178,0.049808,100380.0,100370.0,0.049809]
[1734093040385,0.049808,100380.0,100370.0,0.11229485]
[1734093040784,0.19915923,100380.0,100370.0,0.70123555]
[1734093040983,0.5355797,100380.0,100370.0,0.004]
[1734093041284,0.6977061,100380.0,100370.0,0.004]
[1734093041887,0.90676952,100380.0,100370.0,0.42251199]
[1734093042186,0.90676952,100380.0,100370.0,0.18336228]
[1734093042385,0.90676952,100380.0,100370.0,0.005]
[1734093044390,0.6977061,100380.0,100370.0,0.005]
[1734093046487,0.87655014,100380.0,100370.0,0.005]
[1734093046783,0.6977061,100380.0,100370.0,0.005]
[1734093046973,0.90642428,100380.0,100370.0,0.005]
[1734093047382,0.6977061,100380.0,100370.0,0.005]
[1734093047794,0.886469,100380.0,100370.0,0.005]
[1734093047991,0.88646746,100380.0,100370.0,0.005]
[1734093048180,0.88646743,100380.0,100370.0,0.005]
[1734093048379,0.7076765,100380.0,100370.0,0.005]
[1734093049580,0.88640582,100380.0,100370.0,0.005]
[1734093050180,0.7076765,100380.0,100370.0,0.005]
[1734093050980,0.88640116,100380.0,100370.0,0.005]
[1734093051184,0.7076765,100380.0,100370.0,0.005]
[1734093051787,0.72783071,100380.0,100370.0,0.005]
[1734093053396,0.90649218,100380.0,100370.0,0.005]
[1734093053691,0.72783071,100380.0,100370.0,0.005]
[1734093053887,0.90649225,100380.0,100360.0,0.00011629]
[1734093054085,0.65468326,100370.0,100360.0,0.00011629]
[1734093054689,0.75430966,100370.0,100360.0,0.00011629]
[1734093055304,0.93297096,100370.0,100360.0,0.00011629]
[1734093055885,0.93297096,100370.0,100360.0,0.00111629]
[1734093056285,0.60542525,100370.0,100360.0,0.00111629]
[1734093056896,0.60542525,100370.0,100360.0,0.00011629]
[1734093057097,0.93499522,100370.0,100360.0,0.00111629]
[1734093057486,0.78609978,100370.0,100360.0,0.00111629]
[1734093062598,0.78609978,100370.0,100340.0,0.22027014]
[1734093062599,0.049823,100350.0,100340.0,0.22027014]
[1734093062898,0.410623,100350.0,100340.0,0.22027014]
[1734093063099,0.47310885,100350.0,100340.0,0.22027014]
[1734093063302,0.74126466,100350.0,100340.0,0.34947494]
[1734093063496,0.38046466,100350.0,100340.0,0.34947494]
[1734093063795,0.74126466,100350.0,100340.0,0.34947494]
[1734093064192,0.74326466,100350.0,100340.0,0.34947494]
[1734093065496,0.84292084,100350.0,100340.0,0.10795929]
[1734093065698,0.72374048,100350.0,100340.0,0.10795929]
[1734093066294,0.72374048,100350.0,100340.0,0.17044514]
[1734093066690,0.84185749,100350.0,100340.0,0.17044514]
[1734093066994,0.84285749,100350.0,100340.0,0.09809455]
[1734093067390,0.73371821,100350.0,100340.0,0.09809455]
[1734093067595,0.91248875,100350.0,100340.0,0.09809455]
[1734093067994,0.73371821,100350.0,100340.0,0.09809455]
[1734093068495,0.91248875,100350.0,100340.0,0.09809455]
[1734093069194,0.73371821,100350.0,100340.0,0.09809455]
[1734093070401,0.91248875,100350.0,100340.0,0.09809455]
[1734093071196,0.58474276,100350.0,100340.0,0.09809455]
[1734093071996,0.91243923,100350.0,100340.0,0.09809455]
[1734093072589,0.91243923,100350.0,100340.0,0.1605804]
[1734093073998,0.7336957,100350.0,100340.0,0.1605804]
[1734093074399,0.7336957,100350.0,100340.0,0.09809455]
[1734093075304,0.7336957,100350.0,100340.0,0.06669455]
[1734093075702,0.7336957,100350.0,100340.0,0.1291804]
[1734093076506,0.56157594,100350.0,100340.0,0.2399997]
[1734093076698,0.27015397,100350.0,100340.0,0.7798035]
[1734093076898,0.27015397,100350.0,100340.0,1.01847524]
[1734093076899,0.12120103,100350.0,100340.0,1.01847524]
[1734093077093,0.002,100350.0,100340.0,0.6007997]
[1734093077606,0.051823,100350.0,100340.0,0.6007997]
[1734093078108,0.051823,100350.0,100340.0,1.01844455]
[1734093078109,0.17103801,100350.0,100340.0,1.01844455]
[1734093078300,0.17103801,100350.0,100340.0,0.8394539]
[1734093081009,0.12121501,100350.0,100340.0,0.8394539]
[1734093082309,0.002,100350.0,100340.0,0.6007997]
[1734093083009,0.1212623,100350.0,100340.0,0.83953335]
[1734093083610,0.1212623,100350.0,100340.0,1.48778179]
[1734093084112,0.002,100350.0,100340.0,1.48778179]
[1734093087605,0.002,100350.0,100340.0,1.48731259]
[1734093088113,0.002,100350.0,100340.0,0.6007997]
[1734093089011,0.002,100350.0,100340.0,0.83954495]
[1734093089206,0.002,100350.0,100340.0,1.48714474]
[1734093093419,0.002,100350.0,100340.0,0.6007997]
[1734093094005,0.002,100350.0,100340.0,0.96328555]
[1734093094212,0.11924374,100360.0,100340.0,1.66051204]
[1734093094511,0.11924374,100360.0,100350.0,0.80689502]
[1734093094918,0.59234759,100360.0,100350.0,0.32112332]
[1734093095120,0.59234759,100360.0,100350.0,0.46754669]
[1734093095413,0.74240613,100360.0,100350.0,0.22884637]
[1734093095816,0.62316239,100360.0,100350.0,0.049823]
[1734093096016,0.80203264,100360.0,100350.0,0.049823]
[1734093096416,0.59377654,100360.0,100350.0,0.29133222]
[1734093097014,0.59377654,100360.0,100350.0,0.29233222]
[1734093097706,0.77264679,100360.0,100350.0,0.11330885]
[1734093097908,0.83513264,100360.0,100350.0,0.050823]
[1734093098107,0.83513264,100360.0,100350.0,0.22984637]
[1734093098303,0.83513264,100360.0,100350.0,0.11330885]
[1734093098508,0.50720385,100360.0,100350.0,0.11330885]
[1734093099214,0.444718,100360.0,100350.0,0.11330885]
[1734093099518,0.83519754,100360.0,100350.0,0.11330885]
[1734093101210,0.83519754,100360.0,100350.0,0.29239177]
[1734093102309,0.84518098,100360.0,100350.0,0.29239177]
[1734093102905,0.87728098,100360.0,100350.0,0.29239177]
[1734093103104,0.87728098,100360.0,100350.0,0.22990592]
[1734093103304,0.72819294,100360.0,100350.0,0.22990592]
[1734093103621,0.87735727,100360.0,100350.0,0.22990592]
[1734093104116,0.72819294,100360.0,100350.0,0.22990592]
[1734093105324,0.72819294,100360.0,100350.0,0.18008292]
[1734093105514,0.71141939,100360.0,100350.0,0.001]
[1734093105713,0.049823,100350.0,100340.0,0.17908292]
[1734093105918,0.049828,100340.0,100330.0,0.41786015]
[1734093106116,0.68551845,100340.0,100330.0,0.41786015]
[1734093106317,0.96422016,100340.0,100330.0,0.41786015]
[1734093106621,0.96422016,100340.0,100330.0,0.17908292]
[1734093106825,0.96422016,100340.0,100330.0,0.41786015]
[1734093107013,0.78617463,100340.0,100330.0,0.41886015]
[1734093107213,0.78617463,100340.0,100330.0,0.18008292]
[1734093108018,0.78617463,100340.0,100330.0,0.24256877]
[1734093108422,0.96522016,100340.0,100330.0,0.001]
[1734093108624,0.96622016,100340.0,100330.0,0.18108292]
[1734093108821,0.78717463,100340.0,100330.0,0.18108292]
[1734093109425,0.78717463,100340.0,100330.0,0.002]
[1734093110018,0.78717463,100340.0,100330.0,0.18108292]
[1734093111020,0.84966048,100340.0,100330.0,0.002]
[1734093112923,0.78717463,100340.0,100330.0,0.002]
[1734093113326,0.78717463,100340.0,100330.0,0.06448585]
[1734093113926,0.78717463,100340.0,100330.0,0.002]
[1734093114228,0.85967376,100340.0,100330.0,0.002]
[1734093116523,0.79718791,100340.0,100330.0,0.002]
[1734093117234,0.85967376,100340.0,100330.0,0.002]
[1734093120736,0.79718791,100340.0,100330.0,0.002]
[1734093121128,0.85967376,100340.0,100330.0,0.002]
[1734093124833,1.03871929,100340.0,100330.0,0.002]
[1734093127634,0.88951469,100340.0,100330.0,0.002]
[1734093128723,0.049838,100320.0,100310.0,0.24188292]
[1734093128933,0.68457458,100320.0,100310.0,0.24188292]
[1734093129438,0.72177471,100320.0,100310.0,0.24188292]
[1734093129638,0.049843,100310.0,100300.0,0.36997723]
[1734093129830,0.47312885,100310.0,100300.0,0.54899394]
[1734093130238,0.47312885,100310.0,100300.0,0.59884094]
[1734093130443,0.47312885,100310.0,100300.0,0.36006371]
[1734093131241,0.47312885,100310.0,100300.0,0.42254956]
[1734093131533,0.47312885,100310.0,100300.0,0.36006371]
[1734093131938,0.47412885,100310.0,100300.0,0.36006371]
[1734093132427,0.47512885,100310.0,100300.0,0.36006371]
[1734093133341,0.47512885,100310.0,100300.0,0.42254956]
[1734093134934,0.48516185,100310.0,100300.0,0.42254956]
[1734093135130,0.58485777,100310.0,100300.0,0.31021671]
[1734093137035,0.58485777,100310.0,100300.0,0.1312]
[1734093137941,0.002,100310.0,100300.0,1.20832126]
[1734093138133,0.002,100310.0,100300.0,1.38461264]
[1734093138534,0.83324558,100330.0,100300.0,1.38461264]
[1734093138535,0.59200188,100330.0,100320.0,0.049838]
[1734093138730,0.55960188,100330.0,100320.0,0.11232385]
[1734093138939,0.6592978,100330.0,100320.0,0.11232385]
[1734093139450,0.6592978,100330.0,100320.0,0.14302385]
[1734093144043,0.74849966,100340.0,100330.0,0.049833]
[1734093144245,0.74849966,100340.0,100330.0,0.11231885]
[1734093144452,0.66941786,100340.0,100330.0,0.17711885]
[1734093145250,0.67041786,100340.0,100330.0,0.17711885]
[1734093145854,0.73290371,100340.0,100330.0,0.17711885]
[1734093146048,0.73290371,100340.0,100330.0,0.114633]
[1734093146246,0.73290371,100340.0,100330.0,0.081433]
[1734093146955,0.73290371,100340.0,100330.0,0.14391885]
[1734093148154,0.73290371,100340.0,100330.0,0.081433]
[1734093148349,0.91166156,100340.0,100330.0,0.081433]
[1734093148949,0.73290371,100340.0,100330.0,0.081433]
[1734093149455,0.79538956,100340.0,100320.0,0.17888851]
[1734093149647,0.71466958,100330.0,100310.0,0.82830374]
[1734093149847,0.5356097,100320.0,100310.0,0.17888851]
[1734093150154,0.049843,100310.0,100300.0,0.66149659]
[1734093150359,0.410643,100310.0,100300.0,0.72398244]
[1734093150749,0.410643,100310.0,100300.0,0.66149659]
[1734093150945,0.049843,100310.0,100300.0,0.72398244]
[1734093151256,0.049843,100310.0,100300.0,1.05525333]
[1734093152748,0.050843,100310.0,100300.0,1.05625333]
[1734093152951,0.051843,100310.0,100300.0,1.05625333]
[1734093154751,0.002,100310.0,100300.0,1.12210955]
[1734093155255,0.051843,100310.0,100300.0,1.12210955]
[1734093156552,0.051843,100310.0,100300.0,0.76130955]
[1734093156764,0.051843,100310.0,100300.0,1.12210955]
[1734093161565,0.051843,100310.0,100300.0,1.10652691]
[1734093163560,0.17094875,100310.0,100300.0,1.10652691]
[1734093164362,0.12110575,100310.0,100300.0,1.10652691]
[1734093164563,0.002,100310.0,100300.0,1.58144276]
[1734093167875,0.002,100310.0,100300.0,1.5815367]
[1734093168562,0.12110575,100310.0,100300.0,1.5815367]
[1734093169762,0.12110575,100310.0,100300.0,1.48609411]
[1734093171968,0.12110575,100310.0,100300.0,1.48607838]
[1734093172867,0.26639134,100310.0,100300.0,1.48607838]
[1734093173068,0.26639134,100310.0,100300.0,0.8479022]
[1734093173372,0.23359557,100310.0,100300.0,0.8479022]
[1734093173670,0.23359557,100310.0,100300.0,0.91054902]
[1734093175463,0.23359557,100310.0,100300.0,1.20902056]
[1734093176472,0.23359557,100310.0,100300.0,1.54270083]
[1734093176766,0.17094875,100310.0,100300.0,1.54937212]
[1734093177176,0.17094875,100310.0,100300.0,1.5487497]
[1734093178573,0.31991363,100310.0,100300.0,1.5487497]
[1734093179163,0.31991363,100310.0,100300.0,1.5487818]
[1734093179361,0.31991363,100310.0,100300.0,1.66807647]
[1734093183376,0.38256045,100310.0,100300.0,1.66807647]
[1734093183569,0.31991363,100310.0,100300.0,1.66807647]
[1734093184076,0.31991363,100310.0,100300.0,1.66813108]
[1734093184871,0.31991363,100310.0,100300.0,1.30733108]
[1734093185177,0.31991363,100310.0,100300.0,1.66813108]
[1734093186777,0.31991363,100310.0,100300.0,0.85501842]
[1734093186778,0.72395062,100310.0,100300.0,0.85501842]
[1734093187075,0.72395062,100310.0,100300.0,1.04443364]
[1734093187076,0.87154139,100310.0,100300.0,1.04443364]
[1734093187266,0.87154139,100310.0,100300.0,0.58562892]
[1734093187267,0.88072333,100310.0,100300.0,0.58562892]
[1734093187467,0.70196548,100310.0,100300.0,0.11658354]
[1734093187664,0.049848,100300.0,100290.0,0.17957433]
[1734093187875,0.71484876,100300.0,100290.0,0.22994936]
[1734093188073,0.71484876,100300.0,100290.0,0.22321579]
[1734093188281,0.81454468,100300.0,100290.0,0.22321579]
[1734093188476,0.81454468,100300.0,100290.0,0.17957433]
[1734093188675,0.81454468,100300.0,100290.0,0.00012396]
[1734093189073,0.81554468,100300.0,100290.0,0.00112396]
[1734093189281,0.75389786,100300.0,100290.0,0.05097596]
[1734093189577,0.90283164,100300.0,100290.0,0.05097596]
[1734093190975,0.72392452,100300.0,100290.0,0.05097596]
[1734093191582,0.84301285,100300.0,100290.0,0.05097596]
[1734093192984,0.85314441,100300.0,100290.0,0.05097596]
[1734093193786,0.91579123,100300.0,100290.0,0.05097596]
[1734093194080,0.73405608,100300.0,100290.0,0.05097596]
[1734093194676,0.85308088,100300.0,100290.0,0.05097596]
[1734093195182,0.73405608,100300.0,100290.0,0.05097596]
[1734093195877,0.7967029,100300.0,100290.0,0.00112396]
[1734093196485,0.91569961,100300.0,100290.0,0.00112396]
[1734093197285,0.7967029,100300.0,100290.0,0.00112396]
[1734093197487,0.91569964,100300.0,100290.0,0.00112396]
[1734093198280,0.7967029,100300.0,100290.0,0.00112396]
[1734093198481,0.9156843,100300.0,100290.0,0.00112396]
[1734093199581,0.7967029,100300.0,100290.0,0.00112396]
[1734093199776,0.7967029,100300.0,100290.0,0.01671073]
[1734093199983,0.73405608,100300.0,100290.0,0.01671073]
[1734093200188,0.73405608,100300.0,100290.0,0.06656273]
[1734093200395,0.73405608,100300.0,100290.0,0.05097596]
[1734093200686,0.73405608,100300.0,100290.0,0.00112396]
[1734093201286,0.7967029,100300.0,100290.0,0.00112396]
[1734093201588,0.81679907,100300.0,100290.0,0.00112396]
[1734093201784,0.81679907,100300.0,100290.0,0.01671076]
[1734093201983,0.75415225,100300.0,100290.0,0.01671076]
[1734093202177,0.75415225,100300.0,100290.0,0.06656276]
[1734093202781,0.75415225,100300.0,100290.0,0.05097596]
[1734093203492,0.81679907,100300.0,100290.0,0.05097596]
[1734093203790,0.75415225,100300.0,100290.0,0.05097596]
[1734093204991,0.69150543,100300.0,100290.0,0.11362278]
[1734093205192,0.31973767,100300.0,100290.0,0.11362278]
[1734093205378,0.17080389,100300.0,100290.0,0.54166446]
[1734093205582,0.17080389,100300.0,100290.0,0.58530122]
[1734093205890,0.051848,100300.0,100290.0,0.76475159]
[1734093206086,0.051848,100300.0,100290.0,0.72111483]
[1734093207689,0.17080389,100300.0,100290.0,0.72111483]
[1734093208084,0.051848,100300.0,100290.0,0.72111483]
[1734093208485,0.17080389,100300.0,100290.0,0.72111483]
[1734093208686,0.051848,100300.0,100290.0,0.76475052]
[1734093209384,0.17080389,100300.0,100290.0,0.76475052]
[1734093210798,0.17080389,100300.0,100290.0,0.76477084]
[1734093211889,0.17080389,100300.0,100290.0,1.00403106]
[1734093212093,0.17080389,100300.0,100290.0,0.80181182]
[1734093213887,0.12095589,100300.0,100290.0,0.80181182]
[1734093214092,0.12095589,100300.0,100290.0,0.86445864]
[1734093214093,0.002,100300.0,100290.0,0.86445864]
[1734093214298,0.002,100300.0,100290.0,1.32160409]
[1734093214594,0.002,100300.0,100290.0,1.32161079]
[1734093214794,0.13963181,100310.0,100290.0,1.67931383]
[1734093214998,0.13963181,100310.0,100300.0,0.59304948]
[1734093215197,0.13963181,100310.0,100300.0,0.68726145]
[1734093215699,0.13963181,100310.0,100300.0,0.46452614]
[1734093216102,0.14063181,100310.0,100300.0,0.46452614]
[1734093216499,0.14063181,100310.0,100300.0,0.46552614]